bitfinex/quotes_BTCUSD_20250902
["timestamp","ask_amount","ask_price","bid_price","bid_amount"]
[1756776706239,0.18440246,109450.0,109440.0,0.18788853]
[1756776706681,0.19455819,109450.0,109440.0,0.00317]
[1756776706887,0.19455819,109450.0,109440.0,0.00514]
[1756776707325,0.19355819,109450.0,109440.0,0.00514]
[1756776707763,0.19355819,109450.0,109440.0,0.16058]
[1756776707971,0.19255819,109450.0,109440.0,0.15544]
[1756776708189,0.34699819,109450.0,109440.0,0.001]
[1756776708630,0.37446719,109450.0,109440.0,0.001]
[1756776710170,0.19106473,109450.0,109440.0,0.001]
[1756776710404,0.37379657,109450.0,109440.0,0.001]
[1756776713321,0.82876485,109450.0,109440.0,0.001]
[1756776713955,0.83732048,109450.0,109440.0,0.001]
[1756776715978,0.92731253,109450.0,109440.0,0.001]
[1756776717035,0.18278194,109420.0,109410.0,0.07671631]
[1756776717462,0.18278194,109420.0,109410.0,0.07868631]
[1756776717677,0.21025594,109420.0,109410.0,0.07868631]
[1756776717892,0.21025594,109420.0,109410.0,0.00514]
[1756776718598,0.21025594,109420.0,109410.0,0.00714]
[1756776721023,0.027474,109420.0,109410.0,0.19222362]
[1756776721244,0.37874262,109450.0,109420.0,0.18276799]
[1756776721428,0.37874262,109450.0,109420.0,0.33716799]
[1756776721429,0.55022292,109440.0,109420.0,0.33716799]
[1756776721639,0.55022292,109440.0,109430.0,0.00317]
[1756776722071,0.18276523,109430.0,109420.0,0.00317]
[1756776722492,0.18276523,109430.0,109420.0,0.00514]
[1756776723988,0.21023723,109430.0,109420.0,0.00514]
[1756776724392,0.21023723,109430.0,109420.0,0.00614]
[1756776725156,0.70467723,109430.0,109420.0,0.001]
[1756776726010,0.84071492,109430.0,109420.0,0.001]
[1756776726233,0.81631261,109430.0,109420.0,0.001]
[1756776726423,0.66187261,109430.0,109420.0,0.001]
[1756776726641,0.81631261,109430.0,109420.0,0.001]
[1756776727233,0.18278194,109420.0,109410.0,0.00311]
[1756776727452,0.18281097,109410.0,109390.0,0.41995997]
[1756776727676,0.18281097,109410.0,109400.0,0.00524]
[1756776727887,0.027478,109410.0,109400.0,0.18805535]
[1756776728099,0.21027664,109410.0,109400.0,0.18805535]
[1756776728332,0.21027664,109410.0,109400.0,0.00524]
[1756776728772,0.21027664,109410.0,109400.0,0.00571062]
[1756776729210,0.21027664,109410.0,109400.0,0.00671062]
[1756776729436,0.21027664,109410.0,109400.0,0.00458062]
[1756776729955,0.55027664,109410.0,109400.0,0.00147062]
[1756776730163,0.7318604,109410.0,109400.0,0.00147062]
[1756776730794,0.7318604,109410.0,109400.0,0.00347062]
[1756776731048,0.7318604,109410.0,109400.0,0.00047062]
[1756776731261,0.64219263,109410.0,109400.0,0.00047062]
[1756776731884,0.64219263,109410.0,109400.0,0.00147062]
[1756776732505,0.64219263,109410.0,109400.0,0.00097062]
[1756776733133,0.79683263,109410.0,109400.0,0.00097062]
[1756776733345,0.52281535,109400.0,109390.0,0.00311]
[1756776733568,0.52281535,109400.0,109390.0,0.00315705]
[1756776733797,0.52281535,109400.0,109390.0,0.00528705]
[1756776734429,0.52281535,109400.0,109390.0,0.00628705]
[1756776734766,0.52281535,109400.0,109390.0,0.00828705]
[1756776735807,0.52281535,109400.0,109390.0,0.00304705]
[1756776736026,0.55029735,109400.0,109390.0,0.00304705]
[1756776736248,0.21029735,109400.0,109390.0,0.00304705]
[1756776736459,0.55029735,109400.0,109390.0,0.00615705]
[1756776736673,0.55029735,109400.0,109390.0,0.00304705]
[1756776737595,0.55029735,109400.0,109390.0,0.00615705]
[1756776737838,0.79780038,109400.0,109350.0,0.00311]
[1756776738064,0.52288222,109360.0,109350.0,0.00311]
[1756776738283,0.67748222,109360.0,109350.0,0.00311]
[1756776738496,0.70497322,109360.0,109350.0,0.00524]
[1756776738925,0.71612184,109360.0,109350.0,0.00524]
[1756776739353,0.71616883,109360.0,109350.0,0.00524]
[1756776739564,0.55042021,109360.0,109350.0,0.00524]
[1756776739775,0.36498021,109360.0,109350.0,0.00524]
[1756776739988,0.70498021,109360.0,109350.0,0.00524]
[1756776740740,0.7162646,109360.0,109350.0,0.00524]
[1756776741154,0.70498021,109360.0,109350.0,0.00524]
[1756776741511,0.70502021,109360.0,109350.0,0.00624]
[1756776742890,0.71647565,109360.0,109350.0,0.00624]
[1756776744577,0.71643565,109360.0,109350.0,0.00624]
[1756776747412,0.71643565,109360.0,109350.0,0.001]
[1756776748256,0.71643565,109360.0,109350.0,0.00411]
[1756776748471,0.71643565,109360.0,109350.0,0.001]
[1756776749779,0.71643565,109360.0,109350.0,0.00411]
[1756776749934,0.71643565,109360.0,109350.0,0.001]
[1756776751357,0.71643565,109360.0,109350.0,0.00624]
[1756776754280,0.7420235,109360.0,109350.0,0.00411]
[1756776754496,0.99418961,109360.0,109350.0,0.001]
[1756776754718,1.0138448,109360.0,109350.0,0.001]
[1756776754929,1.02024257,109360.0,109350.0,0.001]
[1756776755148,1.04329486,109360.0,109350.0,0.001]
[1756776755533,1.04429486,109360.0,109350.0,0.001]
[1756776755770,0.52289894,109350.0,109340.0,0.00045726]
[1756776755981,0.82117574,109350.0,109340.0,0.00045726]
[1756776756849,0.82121574,109350.0,109340.0,0.00045726]
[1756776757403,0.91313173,109350.0,109340.0,0.00045726]
[1756776757670,0.93407055,109350.0,109340.0,0.00045726]
[1756776757883,0.52294914,109320.0,109310.0,0.00341]
[1756776758094,0.69476771,109320.0,109310.0,0.00341]
[1756776758287,0.69476771,109320.0,109310.0,0.00536]
[1756776758504,0.72226871,109320.0,109310.0,0.00536]
[1756776759164,0.73080252,109320.0,109310.0,0.00550122]
[1756776759600,0.70589766,109320.0,109310.0,0.00750122]
[1756776759837,0.8866981,109320.0,109310.0,0.00254122]
[1756776760058,0.79781365,109320.0,109310.0,0.00254122]
[1756776760515,0.79781365,109320.0,109310.0,0.00750122]
[1756776760940,0.79781365,109320.0,109310.0,0.00550122]
[1756776761156,0.79781365,109320.0,109310.0,0.00750122]
[1756776761719,0.79781365,109320.0,109310.0,0.00650122]
[1756776762636,0.88972964,109320.0,109310.0,0.00455122]
[1756776764224,0.79781365,109320.0,109310.0,0.00455122]
[1756776764437,0.79781572,109320.0,109310.0,0.00455122]
[1756776765114,0.52283059,109320.0,109310.0,0.00650122]
[1756776765342,0.04456397,109320.0,109310.0,0.00650122]
[1756776765573,0.22751311,109320.0,109310.0,0.16130122]
[1756776765777,0.22751311,109320.0,109310.0,0.34426709]
[1756776765778,0.04456397,109320.0,109310.0,0.34426709]
[1756776766222,0.027501,109320.0,109310.0,0.70393079]
[1756776766439,0.19208932,109340.0,109320.0,0.18293764]
[1756776766656,0.2104294,109330.0,109320.0,0.18294914]
[1756776766868,0.23603332,109330.0,109320.0,0.33778914]
[1756776767081,0.23603332,109330.0,109320.0,0.33973914]
[1756776767305,0.23603332,109330.0,109320.0,0.34274914]
[1756776767532,0.23603332,109330.0,109320.0,0.1598]
[1756776767972,0.23603332,109330.0,109320.0,0.34274914]
[1756776769113,0.05310092,109330.0,109320.0,0.34274914]
[1756776769334,0.23703332,109330.0,109320.0,0.18790914]
[1756776769554,0.23703332,109330.0,109320.0,0.1598]
[1756776769760,0.22849868,109330.0,109320.0,0.00496]
[1756776769972,0.22849868,109330.0,109320.0,0.1598]
[1756776770186,0.2114294,109330.0,109320.0,0.1598]
[1756776770623,0.2114294,109330.0,109320.0,0.00496]
[1756776770832,0.2104294,109330.0,109320.0,0.00496]
[1756776771049,0.2104294,109330.0,109320.0,0.15976]
[1756776771270,0.53208932,109340.0,109330.0,0.1829324]
[1756776771271,0.34,109340.0,109330.0,0.1829324]
[1756776771491,0.18289894,109350.0,109340.0,0.18291567]
[1756776771704,0.0346264,109350.0,109340.0,0.18787567]
[1756776771928,0.00854068,109350.0,109340.0,0.25823567]
[1756776772145,0.03603468,109350.0,109340.0,0.41303567]
[1756776772356,0.00854068,109350.0,109340.0,0.25823567]
[1756776772565,0.00854068,109350.0,109340.0,0.41303567]
[1756776773953,0.00854068,109350.0,109340.0,0.25823567]
[1756776774172,0.00854068,109350.0,109340.0,0.41307567]
[1756776774383,0.00854068,109350.0,109340.0,0.25823567]
[1756776774507,0.00854068,109350.0,109340.0,0.41303567]
[1756776774706,0.001,109350.0,109340.0,0.41303567]
[1756776774916,0.00954046,109350.0,109340.0,0.41303567]
[1756776775152,0.00854046,109350.0,109340.0,0.26023567]
[1756776775388,0.00854046,109350.0,109340.0,0.41599567]
[1756776776215,0.03894644,109360.0,109350.0,0.18289894]
[1756776776464,0.04748709,109360.0,109350.0,0.18590894]
[1756776776606,0.04748709,109360.0,109350.0,0.18785894]
[1756776776806,0.23036931,109360.0,109350.0,0.18785894]
[1756776777456,0.23036931,109360.0,109350.0,0.18800016]
[1756776778111,0.23036931,109360.0,109350.0,0.34284016]
[1756776778297,0.23036931,109360.0,109350.0,0.34384016]
[1756776779196,0.23036931,109360.0,109350.0,0.15590122]
[1756776780269,0.23036931,109360.0,109350.0,0.00114122]
[1756776780518,0.23036931,109360.0,109350.0,0.15590122]
[1756776780961,0.25004905,109360.0,109350.0,0.15590122]
[1756776781183,0.34196504,109360.0,109350.0,0.00114122]
[1756776781408,0.8990662,109360.0,109350.0,0.00114122]
[1756776782534,0.8990662,109360.0,109350.0,0.00510122]
[1756776782535,0.68837122,109360.0,109350.0,0.00510122]
[1756776782770,0.68296504,109360.0,109350.0,0.15994122]
[1756776783203,0.05671139,109360.0,109350.0,0.34512639]
[1756776783417,0.03703165,109360.0,109350.0,0.41316016]
[1756776783852,0.028491,109360.0,109350.0,0.25832016]
[1756776784066,0.028491,109360.0,109350.0,0.41392016]
[1756776784067,0.027491,109360.0,109350.0,0.41392016]
[1756776784526,0.027491,109360.0,109350.0,0.41492016]
[1756776784742,0.19452144,109370.0,109360.0,0.18288222]
[1756776784948,0.23055257,109370.0,109360.0,0.18784222]
[1756776785166,0.2103545,109370.0,109360.0,0.18784222]
[1756776785382,0.2103545,109370.0,109360.0,0.00496]
[1756776785595,0.2103545,109370.0,109360.0,0.16056]
[1756776786437,0.2103545,109370.0,109360.0,0.34344222]
[1756776786994,0.22164662,109370.0,109360.0,0.34344222]
[1756776787187,0.22164662,109370.0,109360.0,0.16056]
[1756776788073,0.22164662,109370.0,109360.0,0.16156]
[1756776788877,0.22164662,109370.0,109360.0,0.00596]
[1756776789058,0.22164662,109370.0,109360.0,0.15961]
[1756776789277,0.22164662,109370.0,109360.0,0.1616]
[1756776790061,0.22164662,109370.0,109360.0,0.34448222]
[1756776790710,0.027489,109370.0,109360.0,0.34448222]
[1756776791378,0.1828655,109370.0,109360.0,0.18888222]
[1756776791588,0.1828655,109370.0,109360.0,0.34468222]
[1756776791775,0.21033419,109380.0,109360.0,0.34468222]
[1756776791989,0.21033419,109380.0,109370.0,0.1861155]
[1756776792197,0.21033419,109380.0,109370.0,0.1881055]
[1756776792513,0.21742027,109380.0,109370.0,0.1881055]
[1756776792721,0.027485,109380.0,109370.0,0.1881055]
[1756776793144,0.027485,109380.0,109370.0,0.3439855]
[1756776794328,0.028485,109380.0,109370.0,0.3439855]
[1756776794806,0.027485,109380.0,109370.0,0.3439855]
[1756776795030,0.027485,109380.0,109370.0,0.3459855]
[1756776795247,0.21033378,109380.0,109370.0,0.00724]
[1756776795469,0.21033378,109380.0,109370.0,0.3459055]
[1756776795687,0.21033378,109380.0,109370.0,0.3499055]
[1756776795889,0.21033378,109380.0,109370.0,0.16704]
[1756776796247,0.21752566,109380.0,109370.0,0.16704]
[1756776796437,0.21752566,109380.0,109370.0,0.3499055]
[1756776797076,0.21752566,109380.0,109370.0,0.1941055]
[1756776797287,0.21752566,109380.0,109370.0,0.3499055]
[1756776798407,0.19004066,109380.0,109370.0,0.3499055]
[1756776798807,0.19004066,109380.0,109370.0,0.1941055]
[1756776799043,0.19004066,109380.0,109370.0,0.3499055]
[1756776799221,0.19004066,109380.0,109370.0,0.1941055]
[1756776799422,0.19004066,109380.0,109370.0,0.3498255]
[1756776799887,0.18283401,109390.0,109370.0,0.3498255]
[1756776800099,0.18283401,109390.0,109370.0,0.3465755]
[1756776800308,0.18283401,109390.0,109380.0,0.00325]
[1756776801171,0.19139101,109390.0,109380.0,0.00325]
[1756776801391,0.18284878,109380.0,109370.0,0.003]
[1756776801605,0.18284878,109380.0,109370.0,0.15568]
[1756776801821,0.18284878,109380.0,109370.0,0.3437855]
[1756776801980,0.18284878,109380.0,109370.0,0.16092]
[1756776802643,0.18284878,109380.0,109370.0,0.16492]
[1756776803299,0.18284878,109380.0,109370.0,0.3477855]
[1756776803300,0.18993738,109380.0,109370.0,0.3477855]
[1756776803510,0.0070886,109380.0,109370.0,0.3477855]
[1756776803723,0.18993738,109380.0,109370.0,0.3477855]
[1756776803941,0.18284878,109380.0,109370.0,0.3477855]
[1756776804135,0.18284878,109380.0,109370.0,0.3497855]
[1756776804823,0.18284878,109380.0,109370.0,0.16692]
[1756776805040,0.18284878,109380.0,109370.0,0.01124]
[1756776805265,0.18284878,109380.0,109370.0,0.16497]
[1756776805513,0.18283401,109390.0,109370.0,0.3498255]
[1756776805781,0.18284878,109380.0,109370.0,0.3498255]
[1756776806021,0.18284878,109380.0,109370.0,0.3465755]
[1756776806230,0.18283401,109390.0,109370.0,0.3465755]
[1756776806452,0.21110838,109390.0,109380.0,0.00325]
[1756776806700,0.19850836,109390.0,109380.0,0.18808878]
[1756776806936,0.18995129,109390.0,109380.0,0.18808878]
[1756776807189,0.18995129,109390.0,109380.0,0.00524]
[1756776807395,0.18995129,109390.0,109380.0,0.15576]
[1756776807983,0.18995129,109390.0,109380.0,0.15901]
[1756776808193,0.18284878,109380.0,109370.0,0.1861155]
[1756776808411,0.18284878,109380.0,109370.0,0.002]
[1756776808621,0.1828655,109370.0,109360.0,0.00325]
[1756776808831,0.1828655,109370.0,109360.0,0.34201222]
[1756776809043,0.18284878,109380.0,109370.0,0.00199]
[1756776809475,0.18284878,109380.0,109360.0,0.33876222]
[1756776809721,0.18284878,109380.0,109370.0,0.15788]
[1756776809925,0.18284878,109380.0,109370.0,0.16112]
[1756776810321,0.18284878,109380.0,109370.0,0.00624]
[1756776810561,0.18284878,109380.0,109370.0,0.16216]
[1756776810775,0.18284878,109380.0,109370.0,0.16116]
[1756776811023,0.18284878,109380.0,109370.0,0.00524]
[1756776811212,0.1828655,109370.0,109360.0,0.18288222]
[1756776811426,0.1828655,109370.0,109360.0,0.34079222]
[1756776811619,0.1828655,109370.0,109360.0,0.33880222]
[1756776811865,0.1828655,109370.0,109360.0,0.34412222]
[1756776812878,0.1828655,109370.0,109360.0,0.34812222]
[1756776813573,0.1828655,109370.0,109360.0,0.19212222]
[1756776814027,0.1828655,109370.0,109360.0,0.19412222]
[1756776814239,0.1828655,109370.0,109360.0,0.35008222]
[1756776814449,0.18284878,109380.0,109360.0,0.35008222]
[1756776814655,0.19141885,109380.0,109360.0,0.34683222]
[1756776814896,0.18348245,109390.0,109370.0,0.00325]
[1756776815071,0.18284878,109380.0,109370.0,0.00325]
[1756776815441,0.18284878,109380.0,109370.0,0.00533]
[1756776816049,0.18284878,109380.0,109370.0,0.00633]
[1756776816271,0.18284878,109380.0,109370.0,0.1891955]
[1756776816449,0.18284878,109380.0,109370.0,0.1881955]
[1756776816773,0.18284878,109380.0,109370.0,0.1901955]
[1756776817331,0.18284878,109380.0,109370.0,0.1911955]
[1756776818057,0.18284878,109380.0,109370.0,0.003]
[1756776818058,0.32058949,109380.0,109370.0,0.003]
[1756776818274,0.51983714,109380.0,109370.0,0.003]
[1756776818501,0.86626783,109380.0,109370.0,0.003]
[1756776818723,0.84317198,109380.0,109370.0,0.003]
[1756776818940,0.93332999,109380.0,109370.0,0.003]
[1756776819361,0.93332999,109380.0,109370.0,0.001]
[1756776819570,0.93332218,109380.0,109370.0,0.001]
[1756776819777,1.00364218,109380.0,109370.0,0.002]
[1756776820025,1.00364218,109380.0,109370.0,0.001]
[1756776820689,0.18288222,109360.0,109350.0,0.00014122]
[1756776820913,0.45781685,109360.0,109350.0,0.00014122]
[1756776821373,0.45139001,109360.0,109350.0,0.00014122]
[1756776822064,0.49205671,109360.0,109350.0,0.00014122]
[1756776822277,0.49205671,109360.0,109350.0,0.00214122]
[1756776823257,0.33521671,109360.0,109350.0,0.00314122]
[1756776823462,0.49193671,109360.0,109350.0,0.00314122]
[1756776825288,0.33521671,109360.0,109350.0,0.00314122]
[1756776825491,0.49197671,109360.0,109350.0,0.00314122]
[1756776828693,0.49197671,109360.0,109350.0,0.00840122]
[1756776828907,0.49197671,109360.0,109350.0,0.00314122]
[1756776829109,0.83197671,109360.0,109350.0,0.00314122]
[1756776829319,0.94483152,109360.0,109350.0,0.00314122]
[1756776829555,0.99542343,109360.0,109350.0,0.00314122]
[1756776829677,1.02854351,109360.0,109350.0,0.00314122]
[1756776829898,1.01999939,109360.0,109350.0,0.00314122]
[1756776830251,0.90326744,109360.0,109350.0,0.00214122]
[1756776830506,0.90626744,109360.0,109350.0,0.00014122]
[1756776830921,0.90926744,109360.0,109350.0,0.00014122]
[1756776831127,0.90626744,109360.0,109350.0,0.00014122]
[1756776831506,0.90926744,109360.0,109350.0,0.00014122]
[1756776832482,0.92824343,109360.0,109350.0,0.00014122]
[1756776832744,0.90926744,109360.0,109350.0,0.00014122]
[1756776834297,0.92634272,109360.0,109350.0,0.00014122]
[1756776834662,0.76982272,109360.0,109350.0,0.00014122]
[1756776834875,0.92622272,109360.0,109350.0,0.00014122]
[1756776835098,0.99257267,109360.0,109350.0,0.00014122]
[1756776836360,1.02568557,109360.0,109350.0,0.00014122]
[1756776836957,1.00007335,109360.0,109350.0,0.00014122]
[1756776837211,1.02568615,109360.0,109350.0,0.00014122]
[1756776838227,0.18294914,109320.0,109310.0,0.0004]
[1756776838388,0.33942914,109320.0,109310.0,0.00087035]
[1756776838606,0.33942914,109320.0,109310.0,0.00295035]
[1756776838831,0.33942914,109320.0,109310.0,0.00613035]
[1756776839063,0.33950914,109320.0,109310.0,0.00613035]
[1756776839519,0.33950914,109320.0,109310.0,0.00813035]
[1756776839738,0.33950914,109320.0,109310.0,0.00913035]
[1756776840914,0.34667669,109320.0,109310.0,0.00913035]
[1756776841458,0.45827442,109320.0,109310.0,0.00387035]
[1756776841678,0.49848229,109320.0,109310.0,0.00387035]
[1756776842094,0.51556587,109320.0,109310.0,0.00387035]
[1756776842299,0.85943587,109320.0,109310.0,0.00387035]
[1756776842503,0.85943587,109320.0,109310.0,0.00287035]
[1756776842707,0.70287587,109320.0,109310.0,0.00087035]
[1756776842909,0.85943587,109320.0,109310.0,0.00087035]
[1756776843121,0.85943587,109320.0,109310.0,0.00187035]
[1756776843323,0.85943587,109320.0,109310.0,0.00087035]
[1756776843529,0.98083061,109320.0,109310.0,0.00087035]
[1756776843737,1.04570581,109320.0,109310.0,0.00087035]
[1756776844792,1.06780172,109320.0,109310.0,0.00087035]
[1756776845006,0.54390469,109310.0,109300.0,0.0004]
[1756776845217,0.77394441,109310.0,109300.0,0.0004]
[1756776845463,0.8658604,109310.0,109300.0,0.0004]
[1756776845677,0.8658604,109310.0,109300.0,1e-08]
[1756776845678,0.88895631,109310.0,109300.0,1e-08]
[1756776846104,0.95376032,109310.0,109300.0,1e-08]
[1756776846309,0.96229654,109310.0,109300.0,1e-08]
[1756776846734,1.11988785,109310.0,109300.0,1e-08]
[1756776846947,1.11988171,109310.0,109300.0,1e-08]
[1756776847159,1.08696481,109310.0,109300.0,1e-08]
[1756776847374,1.1788808,109310.0,109300.0,1e-08]
[1756776847824,1.1808808,109310.0,109300.0,1e-08]
[1756776848035,1.1798408,109310.0,109300.0,1e-08]
[1756776848397,1.1788408,109310.0,109300.0,1e-08]
[1756776849377,1.1798408,109310.0,109300.0,1e-08]
[1756776849594,1.1798408,109310.0,109260.0,1e-08]
[1756776849595,0.52303285,109270.0,109260.0,1e-08]
[1756776849811,1.1454333,109270.0,109260.0,1e-08]
[1756776850021,0.98613313,109270.0,109260.0,1e-08]
[1756776850232,1.14281313,109270.0,109260.0,1e-08]
[1756776850438,1.14281313,109270.0,109240.0,0.0004]
[1756776850439,0.54400518,109250.0,109240.0,0.0004]
[1756776850646,0.87853816,109250.0,109240.0,0.0004]
[1756776850860,0.91867707,109250.0,109240.0,0.0004]
[1756776851070,0.91867707,109250.0,109240.0,0.0005413]
[1756776851505,0.91891707,109250.0,109240.0,0.0005413]
[1756776851942,0.18308311,109240.0,109230.0,0.0034]
[1756776852170,0.54544675,109240.0,109230.0,0.003541]
[1756776852384,1.04827586,109240.0,109230.0,1e-08]
[1756776852595,1.07281843,109240.0,109230.0,1e-08]
[1756776852820,1.04839586,109240.0,109230.0,1e-08]
[1756776854044,1.05202686,109240.0,109230.0,1e-08]
[1756776854246,1.09250738,109240.0,109230.0,1e-08]
[1756776854463,1.09728546,109240.0,109230.0,1e-08]
[1756776854887,1.09724546,109240.0,109230.0,1e-08]
[1756776855376,1.09086825,109240.0,109230.0,1e-08]
[1756776855798,0.93386825,109240.0,109230.0,1e-08]
[1756776856018,1.09086825,109240.0,109230.0,1e-08]
[1756776856658,1.07382525,109240.0,109230.0,1e-08]
[1756776856867,1.09078307,109240.0,109230.0,1e-08]
[1756776857302,1.09070307,109240.0,109230.0,0.00300001]
[1756776857515,1.09070403,109240.0,109230.0,0.00300001]
[1756776857955,0.84330351,109240.0,109230.0,0.00300001]
[1756776858168,1.00022351,109240.0,109230.0,0.00508001]
[1756776858374,0.98054177,109240.0,109230.0,1e-08]
[1756776858589,0.98050177,109240.0,109230.0,0.00300001]
[1756776860313,0.73170578,109240.0,109230.0,0.00508001]
[1756776860555,0.88857491,109240.0,109230.0,0.00508001]
[1756776860769,0.86763609,109240.0,109230.0,0.00508001]
[1756776860994,0.71075609,109240.0,109230.0,0.00508001]
[1756776861209,0.86763609,109240.0,109230.0,0.00508001]
[1756776861425,0.71075609,109240.0,109230.0,0.00508001]
[1756776861849,0.86763609,109240.0,109230.0,0.00508001]
[1756776862741,0.86759609,109240.0,109230.0,0.00508001]
[1756776862961,0.86855609,109240.0,109230.0,0.00508001]
[1756776863237,0.86955609,109240.0,109230.0,0.00508001]
[1756776863460,0.86755609,109240.0,109230.0,0.00508001]
[1756776863653,0.86755609,109240.0,109230.0,0.00808001]
[1756776863867,0.90847357,109240.0,109230.0,0.00808001]
[1756776864926,0.75167357,109240.0,109230.0,0.00808001]
[1756776865143,0.90855357,109240.0,109230.0,0.00808001]
[1756776865353,0.75167357,109240.0,109230.0,0.00808001]
[1756776865588,0.90851357,109240.0,109230.0,0.00808001]
[1756776865786,0.41167357,109240.0,109230.0,0.00808001]
[1756776866209,0.56484257,109240.0,109230.0,0.00808001]
[1756776866440,0.56006449,109240.0,109230.0,0.00808001]
[1756776867332,0.54311658,109240.0,109230.0,0.00808001]
[1756776867584,0.56011463,109240.0,109230.0,0.00808001]
[1756776868004,0.40327463,109240.0,109230.0,0.00808001]
[1756776868286,0.56023463,109240.0,109230.0,0.00808001]
[1756776870949,0.56026869,109240.0,109230.0,0.00808001]
[1756776872393,0.57991726,109240.0,109230.0,0.00808001]
[1756776872595,0.66142238,109240.0,109230.0,0.00300001]
[1756776873012,0.66781847,109240.0,109230.0,0.00300001]
[1756776873196,0.66781847,109240.0,109230.0,0.00808001]
[1756776873401,0.58631335,109240.0,109230.0,0.00808001]
[1756776873974,0.37656379,109240.0,109230.0,0.29831487]
[1756776874177,0.38296869,109240.0,109230.0,0.00808001]
[1756776874386,0.37656379,109240.0,109230.0,0.00808001]
[1756776874586,0.38296856,109240.0,109230.0,0.00808001]
[1756776876170,0.22616856,109240.0,109230.0,0.00808001]
[1756776876408,0.38344856,109240.0,109230.0,0.00808001]
[1756776877430,0.40799113,109240.0,109230.0,0.00808001]
[1756776877621,0.38344856,109240.0,109230.0,0.00808001]
[1756776877822,0.38354313,109240.0,109230.0,0.00808001]
[1756776878309,0.06772259,109240.0,109230.0,0.48141475]
[1756776878497,0.21984546,109240.0,109230.0,0.29831487]
[1756776878734,0.20020995,109240.0,109230.0,0.00808001]
[1756776878946,0.35820973,109240.0,109230.0,0.00808001]
[1756776879130,0.22636247,109240.0,109230.0,0.00808001]
[1756776879331,0.25090504,109240.0,109230.0,0.00808001]
[1756776879798,0.04327936,109240.0,109230.0,0.19117989]
[1756776880006,0.22636247,109240.0,109230.0,0.00608001]
[1756776880215,0.22636247,109240.0,109230.0,0.00508001]
[1756776880655,0.25090504,109240.0,109230.0,0.01408001]
[1756776880815,0.25090504,109240.0,109230.0,0.00908001]
[1756776881268,0.25090504,109240.0,109230.0,0.01308001]
[1756776881895,0.23377842,109240.0,109230.0,0.00908001]
[1756776882305,0.23377842,109240.0,109230.0,0.01108001]
[1756776882876,0.2509121,109240.0,109230.0,0.01108001]
[1756776885408,0.4086321,109240.0,109230.0,0.01108001]
[1756776885841,0.4086321,109240.0,109230.0,0.00700001]
[1756776886135,0.4086321,109240.0,109230.0,0.01099001]
[1756776886342,0.2509121,109240.0,109230.0,0.01099001]
[1756776886559,0.4085921,109240.0,109230.0,0.01099001]
[1756776886767,0.4085921,109240.0,109230.0,0.00499001]
[1756776886977,0.4085921,109240.0,109230.0,0.18808989]
[1756776887203,0.4085921,109240.0,109230.0,0.19008989]
[1756776888047,0.4085121,109240.0,109230.0,0.19008989]
[1756776888266,0.06782899,109240.0,109230.0,0.19208989]
[1756776888483,0.04331431,109240.0,109230.0,0.19208989]
[1756776888927,0.03688244,109240.0,109230.0,0.19208989]
[1756776889358,0.0368842,109240.0,109230.0,0.19208989]
[1756776890085,0.0368842,109240.0,109230.0,0.34964989]
[1756776891350,0.01715342,109240.0,109230.0,0.34964989]
[1756776892053,0.20023653,109240.0,109230.0,0.34948989]
[1756776892996,0.31925394,109250.0,109230.0,0.00400001]
[1756776893233,0.18308311,109240.0,109230.0,0.00400001]
[1756776893456,0.20927775,109240.0,109230.0,0.00400001]
[1756776893916,0.20927775,109240.0,109230.0,0.00200001]
[1756776894363,0.20927775,109240.0,109230.0,0.00300001]
[1756776894585,0.20927775,109240.0,109230.0,1e-08]
[1756776894780,0.20927775,109240.0,109230.0,0.00200001]
[1756776894897,0.20927775,109240.0,109230.0,0.00300001]
[1756776895109,0.20927775,109240.0,109230.0,0.00499001]
[1756776895317,0.20927775,109240.0,109230.0,0.00713001]
[1756776895523,0.36656073,109240.0,109230.0,0.00713001]
[1756776895722,0.36656073,109240.0,109230.0,0.00913001]
[1756776896212,0.36012574,109240.0,109230.0,0.00913001]
[1756776898480,0.36012574,109240.0,109230.0,0.00714001]
[1756776898701,0.36012574,109240.0,109230.0,0.00400001]
[1756776899062,0.36012574,109240.0,109230.0,0.00714001]
[1756776900043,0.36012574,109240.0,109230.0,0.00913001]
[1756776900922,0.36012574,109240.0,109230.0,0.00714001]
[1756776903832,0.51862995,109240.0,109230.0,0.00400001]
[1756776904031,0.54317252,109240.0,109230.0,0.00400001]
[1756776904250,0.61357252,109240.0,109230.0,0.00400001]
[1756776904862,0.61357252,109240.0,109230.0,0.00200001]
[1756776905198,0.61357252,109240.0,109230.0,0.00300001]
[1756776905614,0.95357252,109240.0,109230.0,0.00300001]
[1756776905822,0.90792312,109240.0,109230.0,0.00200001]
[1756776906244,0.9728165,109240.0,109230.0,0.00100001]
[1756776906435,0.96423764,109240.0,109230.0,0.00100001]
[1756776906610,0.96423764,109240.0,109230.0,0.00200001]
[1756776906829,1.00571162,109240.0,109230.0,0.00200001]
[1756776907275,1.01549759,109240.0,109230.0,0.00200001]
[1756776907455,1.0326462,109240.0,109230.0,0.00200001]
[1756776907674,0.84842149,109240.0,109230.0,0.00200001]
[1756776907855,1.00526149,109240.0,109230.0,0.00200001]
[1756776908415,0.99882919,109240.0,109230.0,0.00200001]
[1756776908617,0.98168053,109240.0,109230.0,0.00200001]
[1756776908900,0.82484053,109240.0,109230.0,0.00200001]
[1756776909108,0.82484053,109240.0,109230.0,0.00505001]
[1756776909331,0.9526271,109240.0,109230.0,0.00200001]
[1756776909944,0.9526271,109240.0,109230.0,0.00505001]
[1756776910500,0.9526271,109240.0,109230.0,0.00200001]
[1756776911240,0.7957871,109240.0,109230.0,0.00200001]
[1756776911452,0.9534671,109240.0,109230.0,0.00200001]
[1756776913873,0.93252828,109240.0,109230.0,0.00708001]
[1756776914077,0.36883173,109240.0,109230.0,0.00708001]
[1756776914283,0.52647173,109240.0,109230.0,0.00708001]
[1756776914498,0.52647173,109240.0,109230.0,0.00505001]
[1756776914708,0.59775055,109240.0,109230.0,0.00200001]
[1756776916692,0.52647173,109240.0,109230.0,0.00200001]
[1756776916912,0.56757471,109240.0,109230.0,0.00200001]
[1756776917803,0.58851353,109240.0,109230.0,0.00200001]
[1756776918757,0.43087353,109240.0,109230.0,0.00708001]
[1756776918973,0.52711173,109240.0,109230.0,0.00708001]
[1756776919600,0.36883173,109240.0,109230.0,0.00708001]
[1756776919814,0.52711173,109240.0,109230.0,0.00708001]
[1756776920649,0.36883173,109240.0,109230.0,0.00708001]
[1756776920870,0.52707173,109240.0,109230.0,0.00708001]
[1756776921304,0.45659173,109240.0,109230.0,0.00708001]
[1756776924556,0.29843173,109240.0,109230.0,0.00708001]
[1756776924749,0.02343263,109240.0,109230.0,0.19017989]
[1756776924950,0.00367,109240.0,109230.0,0.19017989]
[1756776929663,0.18675311,109240.0,109230.0,0.19017989]
[1756776932161,0.18675311,109240.0,109230.0,0.00708001]